lending/lending_fUSD_20260110
["ID","MTS","AMOUNT","RATE_DAILY","PERIOD"]
[401260022,1768079441676,-213.06652075,0.0002259,2]
[401260024,1768079441686,-151.0,0.000226,2]
[401260026,1768079441695,-255.16097283,0.000226,2]
[401260028,1768079441704,-1015.0,0.000226,14]
[401260030,1768079441715,-181975.22,0.000226,2]
[401260060,1768079441980,-7693.05,0.000226,7]
[401260062,1768079441991,-195.06981832,0.000226,2]
[401260064,1768079442001,-174.3607648,0.000226,2]
[401260066,1768079442012,-312.44796488,0.000226,2]
[401260068,1768079442021,-160.34370946,0.000226,2]
[401260070,1768079442031,-151.0,0.000226,2]
[401260072,1768079442041,-258.357273,0.000226,2]
[401260075,1768079442050,-151.0,0.000226,2]
[401260076,1768079442060,-258.357273,0.000226,2]
[401260079,1768079442070,-258.357273,0.000226,2]
[401260081,1768079442080,-258.357273,0.000226,2]
[401260083,1768079442090,-151.0,0.000226,2]
[401260085,1768079442099,-151.0,0.000226,2]
[401260086,1768079442108,-151.0,0.000226,2]
[401260089,1768079442119,-962.483582,0.000226,2]
[401260091,1768079442128,-962.483582,0.000226,2]
[401260093,1768079442137,-962.483582,0.000226,2]
[401260095,1768079442147,-962.483582,0.000226,2]
[401260096,1768079442156,-525.0,0.00022651,36]
[401260098,1768079442165,-522.49890427,0.0002271,2]
[401260101,1768079442175,-650.0,0.00022712,2]
[401260102,1768079442184,-408.507025,0.00022719,2]
[401260105,1768079442193,-1000.0,0.0002274,2]
[401260107,1768079442204,-181.49618347,0.00022758,2]
[401260109,1768079442213,-500.0,0.00022767,2]
[401260111,1768079442223,-19893.0,0.00022858,2]
[401260113,1768079442232,-223.116641,0.00022858,2]
[401260115,1768079442242,-223.116641,0.00022858,2]
[401260117,1768079442251,-223.116641,0.00022858,2]
[401260119,1768079442261,-223.116637,0.00022858,2]
[401260121,1768079442270,-150.0,0.00022871,2]
[401260123,1768079442279,-27846.33877,0.00022871,2]
[401260125,1768079442288,-206986.0327423,0.00022871,2]
[401260127,1768079442297,-98155.390634,0.00022888,2]
[401260129,1768079442308,-59633.80039,0.00022888,2]
[401260131,1768079442317,-634.7157141,0.00023,7]
[401260133,1768079442326,-181688.86923122,0.00023,2]
[401260135,1768079442335,-1006.47821459,0.00023,2]
[401260137,1768079442344,-162.0,0.00023,5]
[401260139,1768079442354,-400.0,0.00023,2]
[401260140,1768079442364,-333.0,0.00023,7]
[401260142,1768079442376,-1000.0,0.00023014,2]
[401260145,1768079442386,-19893.0,0.00023093,2]
[401260146,1768079442398,-2582.63574841,0.000231,2]
[401260148,1768079442409,-217.49433611,0.000232,2]
[401260150,1768079442419,-242.57867279,0.000232,2]
[401260152,1768079442429,-1096.9,0.00023227,2]
[401260154,1768079442439,-470.91372403,0.0002326,2]
[401260156,1768079442448,-525.0,0.00023261,36]
[401260158,1768079442459,-1000.0,0.00023288,2]
[401260160,1768079442470,-333.0,0.00023288,7]
[401260162,1768079442479,-181975.22,0.000233,2]
[401260164,1768079442489,-7693.05,0.000233,7]
[401260166,1768079442498,-151.0,0.000233,2]
[401260169,1768079442508,-151.0,0.000233,2]
[401260171,1768079442517,-151.0,0.000233,2]
[401260173,1768079442526,-151.0,0.000233,2]
[401260175,1768079442536,-331.028766,0.000233,2]
[401260176,1768079442547,-331.028766,0.000233,2]
[401260179,1768079442559,-331.028766,0.000233,2]
[401260180,1768079442569,-331.028766,0.000233,2]
[401260183,1768079442579,-19893.0,0.00023329,2]
[401260185,1768079442588,-150.0,0.00023362,2]
[401260187,1768079442597,-150.0,0.00023362,2]
[401260188,1768079442607,-150.0,0.00023362,2]
[401260190,1768079442616,-150.0,0.00023362,2]
[401260192,1768079442626,-150.0,0.00023362,2]
[401260195,1768079442636,-1330.0,0.00023362,2]
[401260197,1768079442645,-1405.0,0.00023362,2]
[401260199,1768079442655,-3468.0,0.00023362,2]
[401260201,1768079442665,-1266.0,0.00023476,2]
[401260202,1768079442674,-505.0,0.00023476,2]
[401260204,1768079442683,-914.0,0.00023476,2]
[401260206,1768079442693,-1201.0,0.00023476,2]
[401260208,1768079442702,-200.0,0.000235,2]
[401260210,1768079442712,-1000.0,0.00023562,2]
[401260212,1768079442722,-333.0,0.00023562,7]
[401260214,1768079442732,-19893.0,0.00023565,2]
[401260216,1768079442741,-1000.0,0.00023666,2]
[401260218,1768079442751,-587.0,0.00023746,2]
[401260220,1768079442760,-383.92,0.000238,3]
[401260222,1768079442770,-19893.0,0.000238,2]
[401260224,1768079442780,-1000.0,0.00023836,2]
[401260226,1768079442790,-333.0,0.00023836,7]
[401260228,1768079442799,-525.0,0.00023871,36]
[401260230,1768079442808,-2351.0,0.00023952,2]
[401260231,1768079442817,-2437.0,0.00023977,2]
[401260232,1768079442827,-4820.0,0.00023977,2]
[401260233,1768079442836,-6554.0,0.00023977,2]
[401260234,1768079442846,-1019.87220376,0.00024,2]
[401260235,1768079442855,-10346.76975001,0.00024,14]
[401260236,1768079442864,-3600.0,0.00024,2]
[401260237,1768079442874,-1233.34818164,0.00024,2]
[401260238,1768079442883,-8906.24022459,0.00024,2]
[401260239,1768079442893,-16672.12154649,0.00024,2]
[401260240,1768079442902,-19893.0,0.00024036,2]
[401260242,1768079442912,-196.49342566,0.000241,2]
[401260244,1768079442922,-333.0,0.0002411,7]
[401260246,1768079442932,-1000.0,0.0002411,2]
[401260248,1768079442941,-333.0,0.00024164,7]
[401260250,1768079442951,-181975.22,0.000242,2]
[401260252,1768079442961,-7693.05,0.000242,7]
[401260254,1768079442971,-151.0,0.000242,2]
[401260256,1768079442980,-258.357273,0.000242,2]
[401260258,1768079442990,-241.80294846,0.000242,2]
[401260260,1768079443001,-258.357273,0.000242,2]
[401260262,1768079443011,-258.357273,0.000242,2]
[401260264,1768079443020,-258.357273,0.000242,2]
[401260266,1768079443031,-151.0,0.000242,2]
[401260268,1768079443040,-151.0,0.000242,2]
[401260270,1768079443050,-151.0,0.000242,2]
[401260272,1768079443060,-962.483582,0.000242,2]
[401260274,1768079443070,-962.483582,0.000242,2]
[401260276,1768079443080,-962.483582,0.000242,2]
[401260279,1768079443090,-962.483582,0.000242,2]
[401260281,1768079443099,-421.35894984,0.0002421,2]
[401260282,1768079443108,-3691.04430572,0.0002421,2]
[401260284,1768079443117,-19893.0,0.00024272,2]
[401260286,1768079443126,-1007.32138783,0.00024283,2]
[401260288,1768079443135,-1000.0,0.00024384,2]
[401260290,1768079443144,-482.91,0.00024394,2]
[401260292,1768079443154,-525.0,0.00024481,37]
[401260294,1768079443164,-358.75,0.000245,14]
[401260296,1768079443173,-430.5,0.000245,2]
[401260298,1768079443183,-430.5,0.000245,2]
[401260300,1768079443192,-223.75,0.000245,2]
[401260302,1768079443202,-681.45106646,0.00024643,2]
[401260304,1768079443212,-596.71515924,0.0002465,2]
[401260306,1768079443222,-1000.0,0.00024658,2]
[401260308,1768079443231,-1000.0,0.00024658,2]
[401260310,1768079443241,-151.0,0.00024658,2]
[401260312,1768079443251,-151.0,0.00024658,2]
[401260314,1768079443260,-151.0,0.00024658,2]
[401260316,1768079443270,-151.0,0.00024658,2]
[401260318,1768079443280,-151.0,0.00024658,2]
[401260320,1768079443289,-151.0,0.00024658,2]
[401260322,1768079443299,-151.0,0.00024658,2]
[401260324,1768079443308,-151.0,0.00024658,2]
[401260326,1768079443318,-151.0,0.00024658,2]
[401260328,1768079443329,-151.0,0.00024658,2]
[401260330,1768079443339,-151.0,0.00024658,2]
[401260332,1768079443350,-151.0,0.00024658,2]
[401260334,1768079443360,-151.0,0.00024658,2]
[401260336,1768079443370,-151.0,0.00024658,2]
[401260338,1768079443380,-151.0,0.00024658,2]
[401260341,1768079443390,-151.0,0.00024658,2]
[401260343,1768079443405,-151.0,0.00024658,2]
[401260345,1768079443417,-151.0,0.00024658,2]
[401260346,1768079443428,-244.00502,0.00024658,2]
[401260348,1768079443438,-151.0,0.00024658,2]
[401260351,1768079443448,-151.0,0.00024658,2]
[401260353,1768079443459,-151.0,0.00024658,2]
[401260355,1768079443469,-203.788807,0.00024658,2]
[401260356,1768079443478,-1560.31,0.00024658,2]
[401260358,1768079443487,-271.60537758,0.00024658,3]
[401260360,1768079443497,-204.993149,0.00024658,2]
[401260363,1768079443507,-203.70403319,0.00024658,3]
[401260365,1768079443518,-459.0,0.00024658,2]
[401260366,1768079443527,-636.3,0.00024658,7]
[401260368,1768079443537,-546.04059754,0.00024658,2]
[401260371,1768079443547,-181975.22,0.000248,2]
[401260372,1768079443558,-7693.05,0.000248,7]
[401260375,1768079443568,-163015.37269217,0.000248,3]
[401260730,1768079452478,-151.0,0.00016996,2]
[401260731,1768079452487,-590.059,0.00017977,2]
[401260732,1768079452498,-500.0,0.00021,2]
[401260733,1768079452509,-500.0,0.00021274,2]
[401260734,1768079452519,-500.0,0.00021548,2]
[401260735,1768079452528,-3045.0,0.00022,2]
[401260736,1768079452540,-180.070847,0.000247,4]
[401260737,1768079452550,-63938.60148906,0.000248,3]
[401260738,1768079452567,-867.26068256,0.000248,3]
[401260739,1768079452625,-566.0,0.00020977,2]
[401260740,1768079452638,-566.0,0.00023977,2]
[401260741,1768079452649,-475.4,0.000248,3]
[401260742,1768079586579,525.0,0.000196,35]
[401260743,1768079616240,525.0,0.000196,35]
[401260777,1768080045466,617.7,0.00010325,2]
[401260778,1768080045757,617.7,0.00010847,2]
[401260779,1768080045975,617.7,0.0001137,2]
[401260780,1768080046152,617.7,0.00011892,2]
[401260781,1768080046371,617.7,0.00012414,2]
[401260782,1768080046568,617.7,0.00012936,2]
[401260783,1768080046770,617.7,0.00013458,2]
[401260784,1768080047202,617.7,0.0001398,2]
[401260793,1768080608525,5058.41,7.945e-05,2]
[401260794,1768080608549,353.257861,7.945e-05,2]
[401260804,1768080631782,-583.28600103,0.00014502,2]
[401260805,1768080631794,-34.41399897,0.00014502,2]
[401260806,1768080631805,-617.7,0.00015025,2]
[401260807,1768080631815,-300.0,0.00015172,2]
[401260808,1768080631825,-1200.0,0.00015172,2]
[401260809,1768080631834,-300.0,0.00015172,2]
[401260810,1768080631845,-500.0,0.00015173,2]
[401260811,1768080631854,-500.0,0.00015173,2]
[401260812,1768080631864,-500.0,0.00015173,2]
[401260813,1768080631873,-500.0,0.00015173,2]
[401260814,1768080631882,-500.0,0.00015173,2]
[401260815,1768080631892,-500.0,0.00015173,2]
[401260816,1768080631901,-500.0,0.00015173,2]
[401260817,1768080631910,-227.61155844,0.00015173,2]
[401260818,1768080631920,-500.0,0.00015173,2]
[401260819,1768080631929,-500.0,0.00015173,2]
[401260820,1768080631938,-501.54454633,0.00015173,2]
[401260821,1768080631948,-500.0,0.00015173,2]
[401260822,1768080631958,-500.0,0.00015173,2]
[401260823,1768080631967,-500.0,0.00015173,2]
[401260824,1768080631977,-500.0,0.00015173,2]
[401260825,1768080631986,-500.0,0.00015173,2]
[401260826,1768080631995,-500.0,0.00015173,2]
[401260827,1768080632004,-500.0,0.00015173,2]
[401260828,1768080632014,-529.99,0.00015173,2]
[401260829,1768080632022,-200.0,0.0001531,2]
[401260830,1768080632031,-529.99,0.00015447,2]
[401260832,1768080632040,-617.7,0.00015547,2]
[401260835,1768080632049,-2113.75,0.00015566,2]
[401260838,1768080632058,-1000.0,0.00015721,2]
[401260840,1768080632067,-802.24106746,0.00015721,2]
[401260843,1768080632076,-1000.0,0.00015721,2]
[401260846,1768080632086,-1005.81602002,0.00015721,2]
[401260849,1768080632095,-300.18716845,0.00015721,2]
[401260852,1768080632104,-879.40330386,0.00015721,2]
[401260855,1768080632113,-1000.0,0.00015721,2]
[401260857,1768080632123,-1000.0,0.00015721,2]
[401260859,1768080632132,-1000.0,0.00015721,2]
[401260861,1768080632142,-1000.0,0.00015721,2]
[401260863,1768080632152,-1000.0,0.00015721,2]
[401260864,1768080632161,-489.61533507,0.00015721,2]
[401260865,1768080632171,-633.20600999,0.00015721,2]
[401260866,1768080632180,-529.99,0.00015721,2]
[401260867,1768080632189,-2234.82899172,0.00015807,2]
[401260868,1768080632199,-176.78370391,0.00015853,2]
[401260869,1768080632208,-176.78370391,0.00015853,2]
[401260870,1768080632218,-2500.0,0.000159,2]
[401260871,1768080632228,-671.28,0.00015918,2]
[401260872,1768080632237,-2463.25553366,0.00015948,2]
[401260873,1768080632247,-84106.1936602,0.00015949,2]
[401260874,1768080632259,-18158.24134341,0.00015949,2]
[401260875,1768080632270,-906.0,0.00015949,2]
[401260876,1768080632282,-1811.34336008,0.00015949,2]
[401260877,1768080632297,-7304.69935868,0.00015949,2]
[401260878,1768080632309,-326.80947795,0.00015949,2]
[401260879,1768080632320,-19310.51259119,0.00015949,2]
[401260882,1768080637879,-500.0,0.00015948,2]
[401260883,1768080637892,-500.0,0.00015948,2]
[401260884,1768080637901,-500.0,0.00015948,2]
[401260885,1768080637911,-500.0,0.00015948,2]
[401260886,1768080637920,-500.0,0.00015948,2]
[401260887,1768080637930,-244.50861563,0.00015948,2]
[401260888,1768080637940,-1201.51374021,0.00015949,2]
[401260889,1768080637951,-447.66174487,0.00015949,2]
[401261062,1768080639846,-866427.02472341,0.00015949,2]
[401261064,1768080639857,-195.0,0.00015953,2]
[401261067,1768080639867,-195.0,0.00015953,2]
[401261069,1768080639877,-300.0,0.00015953,2]
[401261071,1768080639887,-213.06652075,0.0001599,2]
[401261073,1768080639896,-529.99,0.00015995,2]
[401261075,1768080639906,-500.0,0.00015999,2]
[401261077,1768080639915,-170181.98042662,0.00016,2]
[401261079,1768080639924,-467.01,0.00016045,2]
[401261081,1768080639934,-101627.86,0.0001605,2]
[401261083,1768080639944,-150.99,0.0001605,2]
[401261085,1768080639953,-9999.99,0.0001605,2]
[401261087,1768080639962,-617.7,0.00016069,2]
[401261089,1768080639972,-9999.99,0.00016116,2]
[401261091,1768080639981,-5000.00289262,0.000162,5]
[401261093,1768080639990,-1000.0,0.00016203,2]
[401261095,1768080639999,-529.99,0.00016268,2]
[401261096,1768080640009,-1000.0,0.00016268,2]
[401261098,1768080640018,-1000.0,0.00016268,2]
[401261100,1768080640027,-876.30281883,0.00016268,2]
[401261102,1768080640036,-1000.0,0.00016268,2]
[401261105,1768080640046,-1000.0,0.00016268,2]
[401261106,1768080640055,-1000.0,0.00016268,2]
[401261109,1768080640064,-1000.0,0.00016268,2]
[401261110,1768080640074,-500.0,0.00016273,2]
[401261112,1768080640083,-384.0,0.00016294,2]
[401261115,1768080640093,-500.0,0.00016438,2]
[401261117,1768080640102,-500.0,0.00016438,2]
[401261119,1768080640112,-500.0,0.00016438,2]
[401261121,1768080640121,-500.0,0.00016438,2]
[401261123,1768080640129,-500.0,0.00016438,2]
[401261125,1768080640139,-500.0,0.00016438,2]
[401261127,1768080640148,-500.0,0.00016438,2]
[401261129,1768080640157,-500.0,0.00016438,2]
[401261130,1768080640166,-500.0,0.00016438,2]
[401261132,1768080640177,-500.0,0.00016438,2]
[401261135,1768080640187,-500.0,0.00016438,2]
[401261137,1768080640196,-500.0,0.00016438,2]
[401261138,1768080640206,-500.0,0.00016438,2]
[401261140,1768080640216,-500.0,0.00016438,2]
[401261142,1768080640225,-500.0,0.00016438,2]
[401261144,1768080640235,-500.0,0.00016438,2]
[401261146,1768080640244,-500.0,0.00016438,2]
[401261148,1768080640253,-500.0,0.00016438,2]
[401261150,1768080640263,-500.0,0.00016438,2]
[401261152,1768080640273,-595.89810236,0.00016438,2]
[401261154,1768080640282,-500.0,0.00016438,2]
[401261156,1768080640292,-500.0,0.00016438,2]
[401261158,1768080640302,-500.0,0.00016438,2]
[401261160,1768080640312,-500.0,0.00016438,2]
[401261162,1768080640322,-500.0,0.00016438,2]
[401261164,1768080640331,-500.0,0.00016438,2]
[401261166,1768080640341,-500.0,0.00016438,2]
[401261168,1768080640350,-500.0,0.00016438,2]
[401261170,1768080640360,-500.0,0.00016438,2]
[401261172,1768080640370,-3498.48,0.00016438,2]
[401261174,1768080640379,-500.0,0.00016467,2]
[401261176,1768080640389,-500.0,0.00016467,2]
[401261178,1768080640398,-500.0,0.00016467,2]
[401261180,1768080640408,-327.49083589,0.00016467,2]
[401261182,1768080640417,-500.0,0.00016467,2]
[401261184,1768080640426,-671.28,0.00016515,2]
[401261186,1768080640435,-530.01,0.00016542,2]
[401261188,1768080640445,-500.0,0.00016547,2]
[401261190,1768080640454,-617.7,0.00016591,2]
[401261192,1768080640463,-420.0,0.00016602,2]
[401261194,1768080640474,-1680.0,0.00016686,2]
[401261196,1768080640483,-200.0,0.00016731,2]
[401261198,1768080640492,-500.0,0.00016731,2]
[401261200,1768080640501,-500.0,0.00016731,2]
[401261202,1768080640510,-500.0,0.00016731,2]
[401261204,1768080640520,-500.0,0.00016731,2]
[401261206,1768080640529,-500.0,0.00016731,2]
[401261208,1768080640538,-500.0,0.00016731,2]
[401261210,1768080640547,-500.0,0.00016731,2]
[401261212,1768080640556,-500.0,0.00016731,2]
[401261214,1768080640565,-494.32740785,0.00016731,2]
[401261216,1768080640575,-590.74860506,0.00016731,2]
[401261218,1768080640585,-500.0,0.00016731,2]
[401261220,1768080640594,-200.0,0.00016731,2]
[401261222,1768080640604,-151.0,0.00016731,2]
[401261224,1768080640613,-151.0,0.00016731,2]
[401261226,1768080640622,-151.0,0.00016731,2]
[401261228,1768080640631,-151.0,0.00016731,2]
[401261230,1768080640641,-151.0,0.00016731,2]
[401261232,1768080640650,-151.0,0.00016731,2]
[401261234,1768080640659,-151.0,0.00016731,2]
[401261236,1768080640669,-151.0,0.00016731,2]
[401261238,1768080640679,-151.0,0.00016731,2]
[401261241,1768080640689,-151.0,0.00016731,2]
[401261243,1768080640698,-151.0,0.00016731,2]
[401261245,1768080640707,-151.0,0.00016731,2]
[401261246,1768080640716,-33580.3823,0.00016838,2]
[401261249,1768080640726,-500.0,0.00016938,2]
[401261250,1768080640735,-500.0,0.00016938,2]
[401261252,1768080640745,-500.0,0.00016938,2]
[401261254,1768080640754,-500.0,0.00016938,2]
[401261257,1768080640763,-553.64373807,0.00016938,2]
[401261258,1768080640773,-500.0,0.00016938,2]
[401261260,1768080640782,-500.0,0.00016938,2]
[401261263,1768080640792,-500.0,0.00016938,2]
[401261264,1768080640802,-500.0,0.00016938,2]
[401261267,1768080640811,-500.0,0.00016938,2]
[401261268,1768080640821,-500.0,0.00016938,2]
[401261270,1768080640830,-500.0,0.00016938,2]
[401261272,1768080640839,-500.0,0.00016938,2]
[401261274,1768080640849,-500.0,0.00016938,2]
[401261276,1768080640858,-250.0,0.00016938,2]
[401261278,1768080640867,-500.0,0.00016938,2]
[401261280,1768080640876,-500.0,0.00016938,2]
[401261282,1768080640885,-250.0,0.00016938,2]
[401261284,1768080640894,-500.0,0.00016938,2]
[401261286,1768080640903,-500.0,0.00016938,2]
[401261317,1768080641174,-250.0,0.00016938,2]
[401261319,1768080641185,-500.0,0.00016938,2]
[401261321,1768080641195,-500.0,0.00016938,2]
[401261323,1768080641205,-500.0,0.00016938,2]
[401261325,1768080641214,-500.0,0.00016938,2]
[401261327,1768080641223,-500.0,0.00016938,2]
[401261329,1768080641232,-250.0,0.00016938,2]
[401261331,1768080641242,-250.0,0.00016938,2]
[401261333,1768080641251,-151.0,0.00016938,2]
[401261335,1768080641260,-998.0,0.00016938,2]
[401261337,1768080641270,-250.0,0.00017,2]
[401261339,1768080641279,-671.28,0.00017112,2]
[401261341,1768080641289,-617.7,0.00017113,2]
[401261343,1768080641299,-290.33169083,0.00017161,2]
[401261345,1768080641308,-200.0,0.00017279,2]
[401261347,1768080641318,-500.0,0.00017279,2]
[401261349,1768080641327,-200.0,0.00017279,2]
[401261351,1768080641335,-196.88925333,0.00017486,2]
[401261353,1768080641344,-151.0,0.00017486,2]
[401261355,1768080641354,-4820.0,0.00017516,2]
[401261357,1768080641363,-617.7,0.00017635,2]
[401261359,1768080641372,-671.28,0.00017709,2]
[401261361,1768080641381,-264370.94570615,0.000178,2]
[401261363,1768080641392,-186.24381303,0.000179,2]
[401261365,1768080641402,-242.57867279,0.000179,2]
[401261367,1768080641412,-196.49342566,0.000179,2]
[401261369,1768080641421,-180.070847,0.000179,3]
[401261371,1768080641430,-500.0,0.00017973,2]
[401261373,1768080641440,-500.0,0.00017973,2]
[401261375,1768080641450,-200.0,0.00017973,2]
[401261377,1768080641460,-213.06652075,0.0001799,2]
[401261378,1768080641471,-355.51271084,0.00017999,2]
[401261380,1768080641481,-500.0,0.00017999,2]
[401261382,1768080641492,-340.93808744,0.00017999,2]
[401261385,1768080641502,-189.79432383,0.00017999,2]
[401261386,1768080641511,-500.0,0.00017999,2]
[401261388,1768080641521,-500.0,0.00017999,2]
[401261390,1768080641531,-461.38459099,0.00017999,2]
[401261393,1768080641541,-1784.25,0.00018,7]
[401261394,1768080641550,-2158136.71148421,0.00018,2]
[401261402,1768080641610,-1053.67979629,0.00018,2]
[401261405,1768080641628,-8976.94710961,0.00018,2]
[401261605,1768080643684,-349.0,0.000179,2]
[401261614,1768080643769,-0.79840466,0.000179,2]
[401261703,1768080644834,-467.9684,0.00017516,2]
[401261704,1768080644846,-862.0316,0.00017516,2]
[401261705,1768080644855,-226.26248526,0.000179,2]
[401261706,1768080644864,-66.9756916,0.00018,2]
[401261707,1768080644875,-357.7938238,0.00018,2]
[401261710,1768080644891,-2017665.81534921,0.00018,2]
[401261712,1768080644900,-31893.7604825,0.00018,2]
[401261714,1768080644909,-500.0,0.00018,2]
[401261716,1768080644918,-617.7,0.00018157,2]
[401261718,1768080644927,-587.0,0.00018166,2]
[401261720,1768080644936,-1000.0,0.00018229,2]
[401261722,1768080644949,-671.28,0.00018306,2]
[401261724,1768080644959,-2351.0,0.00018351,2]
[401261726,1768080644968,-1266.0,0.00018457,2]
[401261728,1768080644977,-505.0,0.00018457,2]
[401261730,1768080644986,-1201.0,0.00018457,2]
[401261732,1768080644995,-914.0,0.00018457,2]
[401261734,1768080645004,-2437.0,0.00018457,2]
[401261736,1768080645015,-1405.0,0.00018457,2]
[401261738,1768080645024,-1000.0,0.00018521,2]
[401261740,1768080645033,-617.7,0.0001868,2]
[401261742,1768080645043,-300.0,0.00019,2]
[401261744,1768080645053,-456.59155238,0.00019068,2]
[401261746,1768080645063,-250.0,0.00019163,2]
[401261748,1768080645072,-617.7,0.00019202,2]
[401261750,1768080645081,-242.57867274,0.000193,2]
[401261752,1768080645091,-516.0,0.000196,2]
[401261754,1768080645102,-998.0,0.00019677,2]
[401261756,1768080645111,-617.7,0.00019724,2]
[401261758,1768080645120,-3584.03627534,0.000199,2]
[401261761,1768080645133,-150.0,0.00019973,2]
[401261763,1768080645142,-213.06652075,0.0001999,2]
[401261765,1768080645156,-266.8,0.0002,2]
[401261767,1768080645165,-32253.11394008,0.0002,4]
[401261769,1768080645175,-150.0,0.0002,20]
[401261771,1768080645190,-4572.92193462,0.0002,3]
[401261773,1768080645200,-2930.2063497,0.0002,7]
[401261775,1768080645210,-527.93296052,0.0002,7]
[401261777,1768080645219,-200.366694,0.0002,2]
[401261779,1768080645229,-1000.0,0.0002,7]
[401261781,1768080645238,-450.0,0.0002017,2]
[401261783,1768080645248,-3292.0,0.00020182,2]
[401261786,1768080645257,-516.0,0.0002021,2]
[401261787,1768080645267,-608.67852495,0.00020235,2]
[401261790,1768080645276,-500.0,0.00020246,2]
[401261791,1768080645286,-617.7,0.00020246,2]
[401261793,1768080645296,-1000.0,0.00020254,2]
[401261795,1768080645305,-500.0,0.0002026,2]
[401261797,1768080645314,-500.0,0.0002026,2]
[401261799,1768080645324,-500.0,0.0002026,2]
[401261801,1768080645333,-500.0,0.0002026,2]
[401261804,1768080645345,-500.0,0.0002026,2]
[401261806,1768080645354,-500.0,0.0002026,2]
[401261808,1768080645364,-500.0,0.0002026,2]
[401261810,1768080645374,-353.94920012,0.0002026,2]
[401261812,1768080645383,-500.0,0.0002026,2]
[401261814,1768080645392,-500.0,0.0002026,2]
[401261816,1768080645402,-500.0,0.0002026,2]
[401261818,1768080645412,-3043.0,0.00020261,2]
[401261820,1768080645421,-231.41377673,0.00020261,2]
[401261822,1768080645431,-1000.0,0.00020335,2]
[401261824,1768080645441,-566.60097493,0.00020434,2]
[401261826,1768080645450,-4820.0,0.00020516,2]
[401261828,1768080645459,-176.78370388,0.00020535,2]
[401261830,1768080645476,-192.76,0.00020548,2]
[401261832,1768080645493,-21491.49,0.00020548,2]
[401261834,1768080645502,-22621.57046329,0.000207,2]
[401261836,1768080645512,-242.57867274,0.000207,2]
[401261838,1768080645521,-516.0,0.0002082,3]
[401261840,1768080645532,-166.66,0.00020853,2]
[401261842,1768080645541,-266.0,0.00020932,2]
[401261844,1768080645551,-350.0,0.00021,2]
[401261846,1768080645560,-20000.0,0.00021,2]
[401261848,1768080645570,-1005.28589512,0.00021,2]
[401261850,1768080645580,-1191.77059112,0.00021,2]
[401261852,1768080645591,-196.71164532,0.00021,2]
[401261854,1768080645601,-516.0,0.0002143,3]
[401261856,1768080645610,-1266.0,0.00021457,2]
[401261858,1768080645620,-505.0,0.00021457,2]
[401261860,1768080645629,-1201.0,0.00021457,2]
[401261862,1768080645639,-914.0,0.00021457,2]
[401261864,1768080645648,-2437.0,0.00021457,2]
[401261867,1768080645658,-1405.0,0.00021457,2]
[401261869,1768080645667,-57468.43793889,0.000215,2]
[401261871,1768080645677,-221.8824274,0.000215,2]
[401261873,1768080645687,-166.66,0.00021541,2]
[401261875,1768080645696,-450.0,0.00021616,2]